Cogmind - Beta 14 @@@ ROGUE MODE // 2025.03.13 @ 21:20:03 Player: ywiktor Result: Destroyed by Y-54 Guardian with Flak Gun Performance ------------- Evolutions (3) 1500 Regions Visited (7) 1400 Robots Destroyed (105) 525 Value Destroyed (3597) 3597 Prototype IDs (3) 60 Alien Tech Used (0) 0 Bonus (27) 27 TOTAL SCORE: 7109 Bonus ------- High Alert Combat Kills 74 Follower Combat Kills 75 Friendly Fire -122 Cogmind --------- Core Integrity 0/700 Matter 300/300 Energy 100/100 System Corruption 1% Temperature Cool (18) Movement Core (200) Ox3 Location -7/Storage Parts ------- > --- POWER (1) -------- (None) > --- PROPULSION (4) --- (None) > --- UTILITY (4) ------ Medium Storage Unit Improved Targeting Computer > --- WEAPON (4) ------- (None) > --- INVENTORY (10) --- Improved Deuterium Engine Improved Deuterium Engine Gravmag System Cooled Airjet Cooled Airjet High-capacity Matter Pod (76) Hardened Light Armor Plating Particle Gun Peak State ------------ > --- POWER ------------ Improved Deuterium Engine > --- PROPULSION ------- Carbon-fiber Leg Titanium Leg VSS Leg Improved Carbon-fiber Leg > --- UTILITY ---------- Improved Heat Sink Medium Storage Unit Hardened Medium Armor Plating Improved Light Armor Plating > --- WEAPON ----------- Plasma Cannon Precision Assault Rifle Heavy Assault Cannon > --- INVENTORY -------- Improved Deuterium Engine Improved Deuterium Engine Aluminum Leg Aluminum Leg VSS Leg Improved Heat Sink High-capacity Matter Pod Heavy Ion Cannon Autogun Rocket Launcher [Rating: 44] Favorites ----------- Power Improved Ion Engine Engine Improved Ion Engine Power Core Nuclear Core Propulsion Aluminum Leg Leg Aluminum Leg Hover Unit Cooled Airjet Utility Medium Storage Unit Device Improved Heat Sink Storage Medium Storage Unit Processor Improved Targeting Computer Protection Hardened Medium Armor Plating Weapon Particle Cannon Energy Gun Pulse Rifle Energy Cannon Particle Cannon Ballistic Gun Light Assault Rifle Ballistic Cannon Heavy Assault Cannon Launcher Rocket Launcher Build | -11 -10 -10 -9 -9 -8 -7 -7 ------- Run | Yrd Mat Min Mat Min Mat Fac Sto Slots Evolved 6 | . . . 2 . 2 2 . Power . | . . . . . . . . Propulsion 2 | . . . . . 1 1 . Utility 2 | . . . 1 . . 1 . Weapon 2 | . . . 1 . 1 . . Parts Attached 94 | 8 9 4 3 6 25 16 23 Power 10 | 1 . . 1 . 3 2 3 Engine 7 | 1 . . 1 . 1 2 2 Core 3 | . . . . . 2 . 1 Reactor . | . . . . . . . . Propulsion 30 | 2 4 1 . 2 7 5 9 Treads . | . . . . . . . . Leg 25 | 2 4 1 . 2 7 5 4 Wheel . | . . . . . . . . Hover 5 | . . . . . . . 5 Flight . | . . . . . . . . Utility 26 | 3 2 3 . 2 6 5 5 Device 7 | . 1 1 . 2 . 2 1 Storage 5 | 3 . 1 . . . . 1 Processor 2 | . . . . . . 2 . Hackware . | . . . . . . . . Protection 12 | . 1 1 . . 6 1 3 Artifact . | . . . . . . . . Weapon 28 | 2 3 . 2 2 9 4 6 Energy Gun 5 | 1 . . . . 1 . 3 Energy Cannon 7 | . 3 . . . 2 1 1 Ballistic Gun 10 | 1 . . 2 1 4 2 . Ballistic Cannon 3 | . . . . . 1 1 1 Launcher 3 | . . . . 1 1 . 1 Special Weapon . | . . . . . . . . Impact Weapon . | . . . . . . . . Slashing Weapon . | . . . . . . . . Piercing Weapon . | . . . . . . . . Special Melee Weapon . | . . . . . . . . Unidentified Prototypes 3 | . . . . 1 . 1 1 Parts Lost 38 | . 1 1 . . 8 1 27 Power 4 | . . . . . 2 . 2 Propulsion 14 | . . . . . 2 . 12 Utility 11 | . 1 1 . . 3 1 5 Weapon 9 | . . . . . 1 . 8 Highest Loss Streak 9 | . 1 1 . . 2 1 9 To Critical Strikes . | . . . . . . . . Average Slot Usage (%) 91 | . 95 100 88 93 94 89 78 Engine 8 | . 14 14 11 11 6 5 5 Leg 26 | . 28 28 22 22 26 29 18 Device 7 | . 3 12 11 15 7 4 5 Storage 9 | . 14 14 11 11 9 7 8 Processor 1 | . . . . . . 2 7 Protection 6 | . 6 1 . . 10 12 2 Energy Gun 3 | . 3 . . . 8 2 3 Energy Cannon 10 | . 21 28 18 2 7 4 6 Ballistic Gun 9 | . 3 . 14 21 12 7 3 Ballistic Cannon 2 | . . . . . 3 6 5 Launcher 1 | . . . . 8 . . . Peak Build Rating 44 | 6 10 12 14 26 34 44 43 Average Rating 25 | 4 8 11 13 17 28 39 33 On Entrance 17 | . 6 10 12 14 26 31 43 Naked Turns . | . . . . . . . . Heaviest Build 59 | 12 19 26 27 31 51 59 51 Greatest Support 62 | 20 20 20 20 33 52 62 62 Greatest Overweight (x) 8 | 2 . 1 1 1 1 1 8 Average Overweight (x) . | . . . 1 . . . . Largest Inventory Capacity 10 | 8 8 10 10 10 10 10 10 Average Capacity 9 | 6 8 9 10 10 10 10 10 Most Carried 10 | 7 8 10 10 10 10 10 10 Average Carried 8 | 4 7 9 9 10 9 9 6 Final Capacity 10 | 8 8 10 10 10 10 10 10 Final Carried 10 | 7 8 10 10 10 8 10 8 Class Distribution -------------------- 30% | Scavenger-Tank 25% | Mutant 20% | Scavenger-Gunner 13% | Gunner 10% | Tank Dominant Class ---------------- Mutant | -10/Materials Mutant | -10/Mines Gunner | -9/Materials Scavenger-Gunner | -9/Mines Scavenger-Tank | -8/Materials Scavenger-Tank | -7/Factory Gunner | -7/Storage Resources | -11 -10 -10 -9 -9 -8 -7 -7 ----------- Run | Yrd Mat Min Mat Min Mat Fac Sto Matter Collected 2275 | 282 97 40 31 244 731 419 431 Remotely . | . . . . . . . . Salvage Created 3863 | 81 385 94 57 467 1387 676 716 Parts 213 | 4 20 7 6 37 68 36 35 Haulers Intercepted 2 | . . . . . . 1 1 Recyclers Shooed . | . . . . . . . . Parts Field Recycled . | . . . . . . . . Retrieved Matter . | . . . . . . . . Parts Self-Destructed . | . . . . . . . . Prevented . | . . . . . . . . Kills | -11 -10 -10 -9 -9 -8 -7 -7 ------- Run | Yrd Mat Min Mat Min Mat Fac Sto Combat Hostiles Destroyed 92 | . 10 2 1 17 30 15 17 Guns 30 | . 2 . . 11 12 3 2 Cannons 54 | . 8 2 1 1 18 12 12 AOE 8 | . . . . 5 . . 3 Classes Destroyed 14 | 1 2 . 1 4 3 3 . Worker 5 | . . . . 1 1 1 2 Builder 2 | . . . . 1 . . 1 Hauler 2 | . . . . . . 1 1 Recycler 3 | 1 . . . . 2 . . Operator 2 | . . . . . . 1 1 Watcher 1 | . . . . . 1 . . Swarmer 22 | . 2 . . 7 6 5 2 Grunt 39 | . 8 2 . 7 12 3 7 Duelist 2 | . . . . 1 1 . . Sentry 18 | . . . 1 . 8 3 6 Specialist 2 | . . . . . 2 . . Hunter 2 | . . . . . 1 1 . Programmer 4 | . . . . . . 3 1 Assembled 3 | . . . . 2 . . 1 Thug 1 | . . . . . 1 . . Best Kill Streak 5 | 1 3 2 1 5 5 3 5 Combat Bots Only 4 | . 3 2 1 4 4 3 4 Max Kills in Single Turn 3 | 1 1 1 1 3 3 2 3 Gunslinging . | . . . . . . . . Exploded 3 | . . . . 3 . . 1 Melee . | . . . . . . . . Uniques/NPCs Destroyed . | . . . . . . . . Combat | -11 -10 -10 -9 -9 -8 -7 -7 -------- Run | Yrd Mat Min Mat Min Mat Fac Sto Hostile Shots Fired 828 | . 44 14 3 34 203 104 426 Missed 281 | . 16 1 2 11 69 45 137 Damage Taken 6672 | . 324 204 11 311 1999 771 3052 Core 1117 | . 59 91 . 50 214 54 649 Absorbed by Shields . | . . . . . . . . Core Remaining (%) 72 | 100 . 40 . 87 61 . . Volleys Fired 210 | 2 23 7 1 34 67 27 49 Largest 4 | 2 2 2 3 3 4 3 4 Hottest 221 | 60 136 136 156 111 198 168 221 Shots Fired 546 | 4 46 14 3 60 219 81 119 Gun 273 | 4 14 . 1 44 149 29 32 Cannon 259 | . 32 14 2 6 69 52 84 Launcher 14 | . . . . 10 1 . 3 Special . | . . . . . . . . Kinetic 280 | 2 7 . 1 44 108 54 64 Thermal 252 | 2 39 14 2 6 110 27 52 Explosive 14 | . . . . 10 1 . 3 Electromagnetic . | . . . . . . . . Robot Hit Streak 41 | 2 6 4 4 12 41 9 11 Robot Miss Streak 3 | 1 3 3 . 2 3 2 3 Penetration Max 1 | . . . . . . . 1 Secondary Targets . | . . . . . . . . Shots Hit Robots 341 | 3 28 9 1 35 141 48 76 Core Hits 163 | 2 15 3 1 28 53 20 41 Critical Kills 1 | . . . . 1 . . . Critical Parts Destroyed 1 | . . . . . 1 . . Critical Strikes 14 | . . . . 1 4 4 5 Burn 2 | . . . . . 2 . . Destroy 2 | . . . . 1 1 . . Blast 10 | . . . . . 1 4 5 Melee Attacks . | . . . . . . . . Impact . | . . . . . . . . Slashing . | . . . . . . . . Piercing . | . . . . . . . . Sneak Attacks . | . . . . . . . . Combat Hostiles . | . . . . . . . . Follow-up Attacks . | . . . . . . . . Damage Inflicted 8836 | 28 478 188 20 764 3275 1469 2614 Guns 2893 | 28 81 . . 337 1599 388 460 Cannons 5049 | . 397 188 20 40 1486 1081 1837 Explosions 858 | . . . . 387 177 . 294 Melee . | . . . . . . . . Ramming 36 | . . . . . 13 . 23 Kinetic 4322 | 6 35 . . 337 1433 1058 1453 Thermal 3797 | 22 443 188 20 40 1829 411 844 Explosive 681 | . . . . 387 . . 294 Electromagnetic . | . . . . . . . . Impact . | . . . . . . . . Slashing . | . . . . . . . . Piercing . | . . . . . . . . Highest Corruption 1 | . . . . . . . 1 Average Corruption 1 | . . . . . . . 1 Corruption Purged . | . . . . . . . . Corruption Blocked . | . . . . . . . . Effects 1 | . . . . . . . 1 Message Errors 1 | . . . . . . . 1 Overload Shots . | . . . . . . . . Overflow Damage 262 | . 2 1 . 51 73 85 50 Projectiles 168 | . 2 1 . . 73 85 7 Explosions 94 | . . . . 51 . . 43 Melee . | . . . . . . . . Knockbacks 17 | . . . . . 8 1 8 Impact . | . . . . . . . . Kinetic 14 | . . . . . 6 1 7 Secondary 3 | . . . . . 2 . 1 Self-Inflicted Damage 192 | . . . . 78 . . 114 Shots 6 | . . . . 4 . . 2 Rammed 4 | . . . . . . . 4 Targets Rammed 10 | . . . . . 4 . 6 Kicked 6 | . . . . . 4 . 2 Crushed . | . . . . . . . . Highest Temperature 503 | 40 312 348 45 36 292 278 503 Average Temperature 111 | 20 99 221 25 21 88 87 154 Received Heat Transfer 2579 | . 138 108 6 122 639 144 1422 Effects 6 | . . . . . . . 6 Shutdowns 1 | . . . . . . . 1 Energy Bleed 1 | . . . . . . . 1 Interference 3 | . . . . . . . 3 Short Circuit 1 | . . . . . . . 1 Siege Activations . | . . . . . . . . Robots Corrupted 1 | . . . . . 1 . . Combat Hostiles . | . . . . . . . . Parts Fried . | . . . . . . . . Impact Corruptions 2 | . . . . . 2 . . Robots Melted . | . . . . . . . . Combat Hostiles . | . . . . . . . . Parts Melted 9 | . 2 . . . 5 2 . Heat Transferred 7007 | 50 803 333 37 74 3356 824 1530 Parts Sabotaged . | . . . . . . . . Parts Stolen . | . . . . . . . . Parts Stripped . | . . . . . . . . Power Chain Reactions . | . . . . . . . . Alert | -11 -10 -10 -9 -9 -8 -7 -7 ------- Run | Yrd Mat Min Mat Min Mat Fac Sto Peak Influence 560 | 5 206 50 60 311 560 294 363 Initial 254 | . 3 1 . 23 62 254 109 Average 139 | 2 102 21 24 130 209 133 217 Maximum Alert Level 2 | . 1 . . 1 2 1 1 Low Security (%) 71 | 100 82 100 100 80 55 73 33 Level 1 23 | . 17 . . 19 26 26 66 Level 2 4 | . . . . . 18 . . Level 3 . | . . . . . . . . Level 4 . | . . . . . . . . Level 5 . | . . . . . . . . High Security . | . . . . . . . . Max Security . | . . . . . . . . Squads Dispatched 21 | . 2 . 2 . 4 9 4 Investigation 4 | . 2 . 1 . 1 . . Extermination 5 | . . . . . . 4 1 Reinforcement 9 | . . . 1 . 3 2 3 Assault . | . . . . . . . . Garrison 3 | . . . . . . 3 . Intercept . | . . . . . . . . Searches Triggered . | . . . . . . . . Construction Impeded 2 | . . . . . . . 2 Haulers Reinforced 1 | . . . . . . . 1 Active Scanning Responses . | . . . . . . . . Cargo Convoy Interrupts . | . . . . . . . . Stealth | -11 -10 -10 -9 -9 -8 -7 -7 --------- Run | Yrd Mat Min Mat Min Mat Fac Sto Distress Signals 14 | . . . 2 1 8 . 3 Communications Jammed . | . . . . . . . . Distress Signals . | . . . . . . . . Times Spotted 155 | . 19 2 5 20 51 20 38 Peak Tracking Total 10 | . 3 2 2 4 6 5 10 Tactical Retreats 10 | . 1 . . 2 5 . 2 Traps | -11 -10 -10 -9 -9 -8 -7 -7 ------- Run | Yrd Mat Min Mat Min Mat Fac Sto Traps Triggered 5 | . 1 . 1 . . 1 2 Indirectly . | . . . . . . . . Trap Hack Attempts . | . . . . . . . . Triggered . | . . . . . . . . Disarmed 10 | . . . . . 10 . . Reprogrammed . | . . . . . . . . Reused . | . . . . . . . . Traps Extracted . | . . . . . . . . Installed . | . . . . . . . . Triggered . | . . . . . . . . Machines | -11 -10 -10 -9 -9 -8 -7 -7 ---------- Run | Yrd Mat Min Mat Min Mat Fac Sto Machines Disabled 5 | . 1 . . . 2 1 1 Max in Single Turn 1 | . 1 . . . 1 1 1 Machines Repaired . | . . . . . . . . Machines Dismantled . | . . . . . . . . Machines Sabotaged . | . . . . . . . . Overloaded Fab Kills . | . . . . . . . . Hacking | -11 -10 -10 -9 -9 -8 -7 -7 --------- Run | Yrd Mat Min Mat Min Mat Fac Sto Machines Accessed 35 | . 9 . 3 2 7 8 6 Terminals 27 | . 7 . 2 . 7 5 6 Fabricators 1 | . . . . . . 1 . Repair Stations . | . . . . . . . . Recycling Units 3 | . 2 . 1 . . . . Scanalyzers . | . . . . . . . . Garrison Access 2 | . . . . . . 2 . Total Hacks 75 | . 20 . 11 2 18 15 9 Successful 35 | . 10 . 6 2 10 2 5 Failed 40 | . 10 . 5 . 8 13 4 Catastrophic 7 | . . . 1 . 1 4 1 Database Lockouts . | . . . . . . . . Manual 63 | . 20 . 10 . 15 12 6 Terminals 59 | . 14 . 8 . 18 10 9 Fabricators 2 | . . . . . . 2 . Repair Stations . | . . . . . . . . Recycling Units 9 | . 6 . 3 . . . . Scanalyzers . | . . . . . . . . Garrison Access 3 | . . . . . . 3 . Terminal Hacks 17 | . 3 . . 2 8 . 4 Robot Analysis 3 | . 2 . . . . . 1 Open Door 4 | . . . . 2 . . 2 Branch Access Points 1 | . . . . . . . 1 Alert Level 2 | . . . . . 2 . . Unreport Threat 1 | . . . . . 1 . . Disarm Traps 2 | . . . . . 2 . . Transport Status 1 | . . . . . 1 . . Hauler Manifests 2 | . 1 . . . 1 . . Registered Prototypes 1 | . . . . . 1 . . Fabricator Hacks . | . . . . . . . . Repair Station Hacks . | . . . . . . . . Recycling Unit Hacks 2 | . 1 . 1 . . . . Report Inventory 2 | . 1 . 1 . . . . Scanalyzer . | . . . . . . . . Garrison Access Hacks . | . . . . . . . . Unauthorized Hacks 16 | . 6 . 5 . 2 2 1 Terminals 11 | . 2 . 4 . 2 2 1 Assimilate 1 | . . . 1 . . . . Botnet 7 | . 1 . 2 . 1 2 1 Operators 3 | . 1 . 1 . 1 . . Fabricators . | . . . . . . . . Repair Stations . | . . . . . . . . Recycling Units 5 | . 4 . 1 . . . . Monitor 1 | . 1 . . . . . . Reject 3 | . 2 . 1 . . . . Tunnel 1 | . 1 . . . . . . Scanalyzers . | . . . . . . . . Garrison Access . | . . . . . . . . Data Cores Recovered 1 | . . . . . . 1 . Used . | . . . . . . . . Hacking Detections 27 | . 6 . 3 . 7 8 3 Full Trace Events 1 | . . . . . 1 . . Feedback Events . | . . . . . . . . Feedback Blocked . | . . . . . . . . Robot Schematics Acquired . | . . . . . . . . Robots Built . | . . . . . . . . Authchips . | . . . . . . . . Time . | . . . . . . . . Total Robot Build Rating . | . . . . . . . . Part Schematics Acquired . | . . . . . . . . Parts Built . | . . . . . . . . Authchips . | . . . . . . . . Time . | . . . . . . . . Total Part Build Rating . | . . . . . . . . Parts Repaired . | . . . . . . . . Time . | . . . . . . . . Parts Recycled . | . . . . . . . . Recycled Matter . | . . . . . . . . Retrieved Matter . | . . . . . . . . Retrieved Components . | . . . . . . . . Parts Scanalyzed . | . . . . . . . . Part Schematics Acquired . | . . . . . . . . Parts Damaged . | . . . . . . . . Bothacking | -11 -10 -10 -9 -9 -8 -7 -7 ------------ Run | Yrd Mat Min Mat Min Mat Fac Sto Used RIF Installer . | . . . . . . . . Robots Hacked . | . . . . . . . . Non-combat . | . . . . . . . . Combat . | . . . . . . . . Robot Hacks Applied . | . . . . . . . . Relay Couplers Released . | . . . . . . . . Fabnet Peak Effective % . | . . . . . . . . Robots Rewired 1 | . . . . . . 1 . Allies Hacked . | . . . . . . . . Hacks Repelled . | . . . . . . . . Allies | -11 -10 -10 -9 -9 -8 -7 -7 -------- Run | Yrd Mat Min Mat Min Mat Fac Sto Total Allies 3 | . . . . 2 . 1 . Largest Group 2 | . . . . 2 1 1 . Highest-Rated Group 51 | . . . . 51 31 32 . Highest-Rated Ally 32 | . . . . 31 31 32 . Total Orders . | . . . . . . . . Ally Attacks 24 | . . . . 16 4 4 . Total Damage 395 | . . . . 205 65 125 . Kills 5 | . . . . 4 . 1 . Allies Corrupted . | . . . . . . . . Allies Melted . | . . . . . . . . Intel | -11 -10 -10 -9 -9 -8 -7 -7 ------- Run | Yrd Mat Min Mat Min Mat Fac Sto Robot Analysis Total 3 | . 2 . . . . . 1 Derelict Logs Recovered 3 | . . 2 . 1 . . . Drone Launches . | . . . . . . . . Drone Recoveries . | . . . . . . . . Exploration | -11 -10 -10 -9 -9 -8 -7 -7 ------------- Run | Yrd Mat Min Mat Min Mat Fac Sto Turns Passed 7588 | 90 878 748 361 944 1980 1898 689 Spaces Moved 4571 | 61 636 378 184 473 1097 1289 453 Core 40 | 25 . . . . . . 15 Treads . | . . . . . . . . Legs 4338 | 36 636 378 184 473 1097 1289 245 Wheels . | . . . . . . . . Hover 193 | . . . . . . . 193 Flight . | . . . . . . . . Fastest Speed 40 | 50 120 120 190 130 113 115 40 Average Speed 137 | 97 120 188 190 170 131 129 103 Slowest Speed 450 | 150 120 190 190 190 195 190 450 Overloaded Moves . | . . . . . . . . Propulsion Burnouts . | . . . . . . . . Robots Hopped . | . . . . . . . . Cave-ins Triggered . | . . . . . . . . Exploration Rate (%) 56 | 4 93 65 24 77 76 31 79 Regions Visited 7 Branch Regions 3 Pre-discovered Areas 3 | . 1 1 . 1 . . . Known Exits Taken 2 | . . . . 1 . 1 . Unknown Exits Taken 5 | 1 1 1 1 . 1 . . Scrap Searched 3 | . . 1 . 2 . . . Spaces Dug 10 | . . . . . 10 . . Terrain Destroyed 212 | . . . . 64 60 13 75 Melee . | . . . . . . . . Projectile 66 | . . . . . 20 13 33 AOE 146 | . . . . 64 40 . 42 Terrain Rammed . | . . . . . . . . Walls Destroyed . | . . . . . . . . Machines Disabled . | . . . . . . . . Actions | -11 -10 -10 -9 -9 -8 -7 -7 --------- Run | Yrd Mat Min Mat Min Mat Fac Sto Total 5446 | 88 714 400 195 558 1485 1444 562 Wait 451 | . 22 7 4 43 276 76 23 Move 4564 | 60 635 377 183 472 1096 1288 453 Hop . | . . . . . . . . Pick Up 44 | 13 9 3 1 . 5 7 6 Fast Attach 28 | 5 4 . 1 2 4 4 8 Attach 27 | 3 . 1 1 . 7 4 11 Detach 8 | . 1 . 1 . 1 3 2 Swap 39 | . 5 3 1 4 14 8 4 Drop 48 | 5 15 2 2 3 11 10 . Fire 210 | 2 23 7 1 34 67 27 49 Melee . | . . . . . . . . Ram 4 | . . . . . . . 4 Kick 6 | . . . . . 4 . 2 Crush . | . . . . . . . . Escape Stasis . | . . . . . . . . Rewire 17 | . . . . . . 17 . Trap . | . . . . . . . . Miscellaneous . | . . . . . . . . Route ------- -11/Scrapyard -10/Materials (discovered 3 exits: *Mat x2 / [*Min]) -10/Mines (discovered 3 exits: *Mat x2 / Sub) -9/Materials (discovered 2 exits: Mat / *Min) -9/Mines (discovered 2 exits: *Mat / [*Exi]) -8/Materials -7/Factory (discovered 3 exits: [*Fac] / *Sto x2) -7/Storage (discovered 2 exits: [*Fac] / Rec) History --------- Turn | Location | Event 2 | -11/Scrapyard | Met Revision 17 31 | -11/Scrapyard | Discovered new exit (range 15) 91 | -11/Scrapyard | Entered Materials 265 | -10/Materials | Discovered new exit (range 15) 305 | -10/Materials | Build established: Mutant 449 | -10/Materials | Discovered new exit (range 16) 760 | -10/Materials | Discovered new exit (range 7) 969 | -10/Materials | Entered Mines 1043 | -10/Mines | Core integrity fell below 50% 1196 | -10/Mines | Received a Rocket Launcher from a helpful Derelict 1465 | -10/Mines | Learned location of Storage (-7) 1548 | -10/Mines | Discovered new exit (range 11) 1571 | -10/Mines | Discovered new exit (range 11) 1593 | -10/Mines | Learned 4 Materials zone layouts 1614 | -10/Mines | Identified exit to Subcaves 1717 | -10/Mines | Entered Materials 1717 | -9/Materials | Evolved 2 slots: Utility x1, Weapon x1 1718 | -9/Materials | Identified exit to Materials 1998 | -9/Materials | Discovered new exit (range 16) 2031 | -9/Materials | Met 8R-AWN 2078 | -9/Materials | Entered Mines 2080 | -9/Mines | Followed 8R-AWN into the Mines 2233 | -9/Mines | Build established: Scavenger-Gunner 2304 | -9/Mines | Excavation squad dispatched 2304 | -9/Mines | A large section of the Mines collapsed 2554 | -9/Mines | Excavation squad dispatched 2561 | -9/Mines | Learned location of Zion (-6) 2589 | -9/Mines | Met a Derelict who couldn't figure out how to use a Trap Extractor 2633 | -9/Mines | Discovered new exit (range 5) 2970 | -9/Mines | Discovered exit to Materials (range 3) 2994 | -9/Mines | Found the Drone Emporium 3000 | -9/Mines | Found Prototype Device 3000 | -9/Mines | Identified Thief Drone Bay 3022 | -9/Mines | Entered Materials 3022 | -8/Materials | Accompanied by 1 ally 3022 | -8/Materials | Evolved 2 slots: Propulsion x1, Weapon x1 3027 | -8/Materials | Led the pair of lost Derelicts to an unsafe place 3407 | -8/Materials | Build established: Scavenger-Tank 4294 | -8/Materials | Build established: Tank 4996 | -8/Materials | Discovered new exit (range 4) 5002 | -8/Materials | Entered Factory 5002 | -7/Factory | Evolved 2 slots: Propulsion x1, Utility x1 5080 | -7/Factory | Build established: Scavenger-Tank 5169 | -7/Factory | Discovered new exit (range 4) 6172 | -7/Factory | Garrison activated, responded to threat 6412 | -7/Factory | Discovered new exit (range 4) 6676 | -7/Factory | Build established: Gunner 6889 | -7/Factory | Discovered new exit (range 5) 6900 | -7/Factory | Identified exit to Storage 6900 | -7/Factory | Entered Storage 7029 | -7/Storage | Lost 3 parts (2n1u) 7324 | -7/Storage | Lost 9 parts (4n3u2w) 7408 | -7/Storage | Core integrity fell below 50% 7454 | -7/Storage | Lost 7 parts (1p2n4w) 7456 | -7/Storage | Discovered new exit (range 12) 7516 | -7/Storage | Identified exit to Recycling 7517 | -7/Storage | Assembled infested ambush trap array 7568 | -7/Storage | Core integrity fell below 20% 7589 | -7/Storage | Destroyed by Y-54 Guardian with Flak Gun Last Messages --------------- 07538_ as-60277 destroyed. 07543_ Acquired 71 matter. 07544_ The unstable cave ceiling collapses. 07551_ Acquired Hrd. Light Armor Plating. 07554_ Recoil Stabilizer destroyed. 07554_ S-27 Virus destroyed. 07555_ Destroyed VTOL Module. 07557_ S-27 Virus destroyed. 07558_ Missile Launcher destroyed. 07561_ Cld. Airjet destroyed. 07561_ Acquired 3 matter. 07562_ Lgt. Nuclear Core destroyed. 07566_ Triggered Shock Trap. 07566_ The floor emits a surge of raw power. 07566_ System corrupted (+1). 07567_ W-25 Informer sends out distress signal. 07567_ Cld. Airjet destroyed. 07569_ ZVQ%NFS8DAGVIOBAMBVX& 07570_ Cld. Airjet destroyed. 07579_ Terminal disabled. Map ----- +----------------------------------------------------+ | ?????????????????# # # #??# # | | ?????????????????# """ + + """"#??# # | | ?????????????????# "R ### """"#??# ##### | | ?????????????????# """ #?# """"#??# #?### | | ?????????????????# """ #?# """"#??# ### | | ?????????????????# #?# #??# # | | ?????????????????# ################## # | | ?????????????????#???????# + + | | ?????????????????????????# """" ### | | ??????????????????????????????"" #?# | | ???????????????????????????????"" #??# | | ????????????????????????????????" #??## | | ????????????????????????????????" #???## | | ??????????????????????????????""" #????## | | ?????????????????????????????? ####??# | | ????????????????????????????##/#####"""#?# | | ????????????????????????????# #####"T"### | | ?????????????###########????+ # # | | ?????????????# """"" #????# # # | | ?????????????# """"" #????# # """" # | | ?????????????# """"" #????# # """" # | | ????????????## #????# # """" # | | ????????????# ! #????# # """" # | | ?????????????# Y #????# *+ # | | ?????????????#] #????#= # | | ?????????????# @ gg###?## #####+### | | ?????????????##+######/# ### #### ### | | ??????????" | | ????????>?" | | ???????????#T##+############ ####### | | ???????????????????????????##+###?????### = | | ???????????????????????????????????????# | | ???????????????????????????????????????# | | ???????????????????????????????????????# | | ???????????????????????????????????????# | | ???????????????????????????????????????# | | ???????????????????????????????????????# | | ???????????????????????????????????????#### | | | | | | | | | | | | | | | | | | | | | | | | | +----------------------------------------------------+ Best States ------------- Heat Dissipation 69 Energy Generation 16 Energy Capacity 290 Matter Stores 334 Matter Capacity 500 Sight Range 16 Terrain Scan Density 10 Armor Coverage 450 Evasion (%) 57 Targeting Accuracy 6 Recoil Reduction 4 Item Schematics ----------------- None Robot Schematics ------------------ None Fabricated ------------ Nothing Alien Tech Used ----------------- None Achievements -------------- None Challenges ------------ None Game ------ Seed PropulsionAerolevMapper Manual? 0 Play Time 01:07:05 Cumulative 62.2 hours Start 2025.03.13 @ 20:11:01 End 2025.03.13 @ 21:20:03 Sessions 7 Manual Loads 0 Difficulty Rogue Special Mode None Game No. 62 Rogue 62 Adventurer 0 Explorer 0 Win Type - Total 1 Types 1/0/0/0/0/0/0/0/0 Lore% 31 Gallery% 44 Achievement% 41 Wizard Run 0 Options --------- Layout 1 ASCII 0 Keyboard 1 Movement Numpad Keybinds 0 Fullscreen 1 Font 24/Smallcaps Map View 50x35 Zoom Use 0% Tactical HUD 1 Map Filters NONE Filters NONE Steam 1 RUN: cce7ed10-7b7b-4c49-8fed-7aaad83a47e6